fUSD/lending_fUSD_20260530
["ID","MTS","AMOUNT","RATE_DAILY","PERIOD"]
[423438384,1780121441000,-500.0,0.00014385,2]
[423438381,1780121441000,-166.66,0.00014384,2]
[423438388,1780121441000,-150.0,0.00014399,2]
[423438390,1780121441000,-5476.79845075,0.0001443,2]
[423438389,1780121441000,-150.0,0.00014428,2]
[423438391,1780121441000,-150.0,0.00014441,2]
[423438392,1780121441000,-150.0,0.00014451,2]
[423438396,1780121441000,-150.0,0.00014487,2]
[423438395,1780121441000,-150.0,0.00014487,2]
[423438400,1780121441000,-5476.79845075,0.00014547,2]
[423438426,1780121441000,-501.27,0.00014798,2]
[423438382,1780121441000,-500.0,0.00014385,2]
[423438429,1780121441000,-500.0,0.00014798,2]
[423438462,1780121441000,-200.0,0.0001488,2]
[423438461,1780121441000,-200.0,0.0001488,2]
[423438464,1780121441000,-588.77736788,0.00014887,2]
[423438466,1780121441000,-500.0,0.00014887,2]
[423438465,1780121441000,-500.0,0.00014887,2]
[423438470,1780121441000,-150.0,0.00014898,2]
[423438467,1780121441000,-7349.64176997,0.00014889,2]
[423438468,1780121441000,-25000.0,0.00014891,3]
[423438473,1780121441000,-25000.0,0.000149,3]
[423438471,1780121441000,-5000.0,0.00014899,2]
[423438485,1780121441000,-609.5,0.00014947,2]
[423438475,1780121441000,-7349.64176997,0.000149,2]
[423438472,1780121441000,-20248.92529532,0.000149,3]
[423438469,1780121441000,-2000.0,0.00014893,2]
[423438474,1780121441000,-978.2794745,0.000149,2]
[423438476,1780121441000,-6634.60382844,0.000149,2]
[423438477,1780121441000,-292.15281835,0.000149,2]
[423438478,1780121441000,-1557.32089429,0.000149,2]
[423438480,1780121441000,-254.67513719,0.000149,2]
[423438482,1780121441000,-400.0,0.00014925,2]
[423438479,1780121441000,-2742.86531825,0.000149,2]
[423438483,1780121441000,-400.0,0.00014925,2]
[423438481,1780121441000,-5476.79845075,0.000149,2]
[423438488,1780121441000,-549.14,0.00014947,2]
[423438487,1780121441000,-500.0,0.00014947,2]
[423438486,1780121441000,-500.0,0.00014947,2]
[423438428,1780121441000,-500.0,0.00014798,2]
[423438457,1780121441000,-200.0,0.00014879,2]
[423438463,1780121441000,-506.83787752,0.00014887,2]
[423438484,1780121441000,-150.0,0.00014928,2]
[423438458,1780121441000,-150.0,0.00014879,2]
[423438460,1780121441000,-163.0,0.0001488,2]
[423438431,1780121441000,-7349.64177005,0.000148,2]
[423438430,1780121441000,-6779.6459,0.00014799,2]
[423438432,1780121441000,-150.0,0.0001481,2]
[423438437,1780121441000,-7349.64176997,0.00014822,2]
[423438436,1780121441000,-150.0,0.0001482,2]
[423438434,1780121441000,-5540.394,0.00014812,2]
[423438433,1780121441000,-7349.64176997,0.00014811,2]
[423438438,1780121441000,-497.78987791,0.00014824,2]
[423438440,1780121441000,-500.0,0.00014824,2]
[423438441,1780121441000,-500.0,0.00014824,2]
[423438439,1780121441000,-609.5,0.00014824,2]
[423438446,1780121441000,-7349.64176997,0.00014844,2]
[423438443,1780121441000,-350.0,0.00014826,2]
[423438435,1780121441000,-434.669,0.00014812,2]
[423438449,1780121441000,-981.63781,0.0001485,2]
[423438459,1780121441000,-200.0,0.0001488,2]
[423438442,1780121441000,-549.14,0.00014824,2]
[423438456,1780121441000,-7349.64176997,0.00014878,2]
[423438455,1780121441000,-150.0,0.00014869,2]
[423438453,1780121441000,-981.63781,0.0001486,2]
[423438454,1780121441000,-7349.64176997,0.00014867,2]
[423438451,1780121441000,-7349.64176997,0.00014856,2]
[423438448,1780121441000,-981.63781,0.0001485,2]
[423438444,1780121441000,-7349.64176997,0.00014833,2]
[423438445,1780121441000,-150.0,0.00014839,2]
[423438447,1780121441000,-306.5330681,0.0001485,2]
[423438450,1780121441000,-150.0,0.0001485,2]
[423438452,1780121441000,-500.0,0.00014856,2]
[423438514,1780121442000,-500.0,0.00014992,2]
[423438513,1780121442000,-500.0,0.00014992,2]
[423438519,1780121442000,-35198.3148052,0.00014993,2]
[423438515,1780121442000,-364.34500607,0.00014992,2]
[423438517,1780121442000,-35206.862395,0.00014993,2]
[423438516,1780121442000,-500.0,0.00014992,2]
[423438520,1780121442000,-151.0,0.00014997,2]
[423438518,1780121442000,-2835.3153283,0.00014993,2]
[423438522,1780121442000,-500.0,0.00014999,2]
[423438532,1780121442000,-609.5,0.00014999,2]
[423438524,1780121442000,-500.0,0.00014999,2]
[423438525,1780121442000,-500.0,0.00014999,2]
[423438523,1780121442000,-500.0,0.00014999,2]
[423438530,1780121442000,-609.5,0.00014999,2]
[423438526,1780121442000,-500.0,0.00014999,2]
[423438527,1780121442000,-502.31004729,0.00014999,2]
[423438512,1780121442000,-500.0,0.00014992,2]
[423438531,1780121442000,-609.5,0.00014999,2]
[423438521,1780121442000,-151.0,0.00014997,2]
[423438511,1780121442000,-519.24,0.00014992,2]
[423438495,1780121442000,-47203.6555012,0.0001497,2]
[423438510,1780121442000,-410.30161227,0.00014992,2]
[423438528,1780121442000,-609.5,0.00014999,2]
[423438489,1780121442000,-150.0,0.00014957,2]
[423438490,1780121442000,-500.0,0.00014965,2]
[423438491,1780121442000,-500.0,0.00014965,2]
[423438493,1780121442000,-3129.3930783,0.00014968,2]
[423438492,1780121442000,-2751.0437858,0.00014967,2]
[423438496,1780121442000,-257.94,0.00014985,2]
[423438499,1780121442000,-150.0,0.00014986,2]
[423438494,1780121442000,-460.4024782,0.00014968,2]
[423438509,1780121442000,-500.0,0.00014992,2]
[423438498,1780121442000,-150.0,0.00014986,2]
[423438500,1780121442000,-150.0,0.00014986,2]
[423438501,1780121442000,-150.0,0.00014986,2]
[423438502,1780121442000,-271.11839451,0.00014986,2]
[423438506,1780121442000,-4340.2898597,0.00014989,2]
[423438504,1780121442000,-252.77729148,0.00014986,2]
[423438507,1780121442000,-10342.858399,0.0001499,2]
[423438505,1780121442000,-9042.3067826,0.00014987,2]
[423438503,1780121442000,-217.54708937,0.00014986,2]
[423438508,1780121442000,-664.72,0.00014992,2]
[423438497,1780121442000,-218.71,0.00014985,2]
[423438533,1780121442000,-609.5,0.00014999,2]
[423438543,1780121442000,-609.5,0.00014999,2]
[423438540,1780121442000,-609.5,0.00014999,2]
[423438564,1780121442000,-549.14,0.00014999,2]
[423438559,1780121442000,-549.14,0.00014999,2]
[423438565,1780121442000,-549.14,0.00014999,2]
[423438562,1780121442000,-549.14,0.00014999,2]
[423438567,1780121442000,-549.14,0.00014999,2]
[423438566,1780121442000,-549.14,0.00014999,2]
[423438568,1780121442000,-549.14,0.00014999,2]
[423438578,1780121442000,-549.14,0.00014999,2]
[423438579,1780121442000,-549.14,0.00014999,2]
[423438580,1780121442000,-549.16099601,0.00014999,2]
[423438581,1780121442000,-664.72,0.00014999,2]
[423438582,1780121442000,-664.72,0.00014999,2]
[423438583,1780121442000,-664.72,0.00014999,2]
[423438586,1780121442000,-664.72,0.00014999,2]
[423438585,1780121442000,-664.72,0.00014999,2]
[423438584,1780121442000,-664.72,0.00014999,2]
[423438588,1780121442000,-664.72,0.00014999,2]
[423438587,1780121442000,-664.72,0.00014999,2]
[423438534,1780121442000,-609.5,0.00014999,2]
[423438563,1780121442000,-549.14,0.00014999,2]
[423438561,1780121442000,-549.14,0.00014999,2]
[423438577,1780121442000,-549.14,0.00014999,2]
[423438558,1780121442000,-549.14,0.00014999,2]
[423438535,1780121442000,-609.5,0.00014999,2]
[423438560,1780121442000,-549.14,0.00014999,2]
[423438539,1780121442000,-609.5,0.00014999,2]
[423438537,1780121442000,-609.5,0.00014999,2]
[423438542,1780121442000,-609.5,0.00014999,2]
[423438536,1780121442000,-609.5,0.00014999,2]
[423438541,1780121442000,-609.5,0.00014999,2]
[423438544,1780121442000,-609.5,0.00014999,2]
[423438546,1780121442000,-609.5,0.00014999,2]
[423438545,1780121442000,-609.5,0.00014999,2]
[423438538,1780121442000,-609.5,0.00014999,2]
[423438548,1780121442000,-609.56071349,0.00014999,2]
[423438547,1780121442000,-609.5,0.00014999,2]
[423438551,1780121442000,-500.0,0.00014999,2]
[423438550,1780121442000,-266.90977676,0.00014999,2]
[423438552,1780121442000,-549.14,0.00014999,2]
[423438549,1780121442000,-500.0,0.00014999,2]
[423438554,1780121442000,-549.14,0.00014999,2]
[423438555,1780121442000,-549.14,0.00014999,2]
[423438557,1780121442000,-549.14,0.00014999,2]
[423438556,1780121442000,-549.14,0.00014999,2]
[423438627,1780121443000,-501.27,0.00014999,2]
[423438624,1780121443000,-513.77,0.00014999,2]
[423438623,1780121443000,-513.77,0.00014999,2]
[423438622,1780121443000,-513.77,0.00014999,2]
[423438618,1780121443000,-513.77,0.00014999,2]
[423438620,1780121443000,-513.77,0.00014999,2]
[423438614,1780121443000,-513.77,0.00014999,2]
[423438616,1780121443000,-513.77,0.00014999,2]
[423438631,1780121443000,-501.27,0.00014999,2]
[423438621,1780121443000,-513.77,0.00014999,2]
[423438632,1780121443000,-501.27,0.00014999,2]
[423438641,1780121443000,-501.27,0.00014999,2]
[423438630,1780121443000,-501.27,0.00014999,2]
[423438626,1780121443000,-501.27,0.00014999,2]
[423438625,1780121443000,-513.85046541,0.00014999,2]
[423438629,1780121443000,-501.27,0.00014999,2]
[423438633,1780121443000,-501.27,0.00014999,2]
[423438635,1780121443000,-501.27,0.00014999,2]
[423438634,1780121443000,-501.27,0.00014999,2]
[423438636,1780121443000,-501.27,0.00014999,2]
[423438640,1780121443000,-501.27,0.00014999,2]
[423438637,1780121443000,-501.27,0.00014999,2]
[423438617,1780121443000,-513.77,0.00014999,2]
[423438628,1780121443000,-501.27,0.00014999,2]
[423438619,1780121443000,-513.77,0.00014999,2]
[423438592,1780121443000,-664.72,0.00014999,2]
[423438613,1780121443000,-513.77,0.00014999,2]
[423438642,1780121443000,-501.27,0.00014999,2]
[423438589,1780121443000,-664.72,0.00014999,2]
[423438590,1780121443000,-664.72,0.00014999,2]
[423438591,1780121443000,-664.72,0.00014999,2]
[423438595,1780121443000,-664.72,0.00014999,2]
[423438597,1780121443000,-664.72,0.00014999,2]
[423438593,1780121443000,-664.72,0.00014999,2]
[423438594,1780121443000,-664.72,0.00014999,2]
[423438596,1780121443000,-664.72,0.00014999,2]
[423438598,1780121443000,-664.72,0.00014999,2]
[423438600,1780121443000,-664.72,0.00014999,2]
[423438615,1780121443000,-513.77,0.00014999,2]
[423438599,1780121443000,-664.72,0.00014999,2]
[423438602,1780121443000,-664.84,0.00014999,2]
[423438603,1780121443000,-513.77,0.00014999,2]
[423438608,1780121443000,-513.77,0.00014999,2]
[423438604,1780121443000,-513.77,0.00014999,2]
[423438605,1780121443000,-513.77,0.00014999,2]
[423438610,1780121443000,-513.77,0.00014999,2]
[423438607,1780121443000,-513.77,0.00014999,2]
[423438606,1780121443000,-513.77,0.00014999,2]
[423438609,1780121443000,-513.77,0.00014999,2]
[423438612,1780121443000,-513.77,0.00014999,2]
[423438611,1780121443000,-513.77,0.00014999,2]
[423438601,1780121443000,-664.72,0.00014999,2]
[423438639,1780121443000,-501.27,0.00014999,2]
[423438687,1780121443000,-519.24,0.00014999,2]
[423438643,1780121443000,-501.27,0.00014999,2]
[423438669,1780121443000,-500.0,0.00014999,2]
[423438671,1780121443000,-3557.79982535,0.00014999,2]
[423438674,1780121443000,-151.0,0.00014999,2]
[423438675,1780121443000,-151.0,0.00014999,2]
[423438676,1780121443000,-151.0,0.00014999,2]
[423438677,1780121443000,-151.0,0.00014999,2]
[423438678,1780121443000,-151.0,0.00014999,2]
[423438679,1780121443000,-151.0,0.00014999,2]
[423438685,1780121443000,-519.24,0.00014999,2]
[423438680,1780121443000,-151.0,0.00014999,2]
[423438682,1780121443000,-151.0,0.00014999,2]
[423438673,1780121443000,-151.0,0.00014999,2]
[423438681,1780121443000,-151.0,0.00014999,2]
[423438684,1780121443000,-519.24,0.00014999,2]
[423438693,1780121443000,-519.24,0.00014999,2]
[423438688,1780121443000,-519.24,0.00014999,2]
[423438690,1780121443000,-519.24,0.00014999,2]
[423438689,1780121443000,-519.24,0.00014999,2]
[423438694,1780121443000,-519.24,0.00014999,2]
[423438692,1780121443000,-519.24,0.00014999,2]
[423438695,1780121443000,-519.24,0.00014999,2]
[423438696,1780121443000,-519.24,0.00014999,2]
[423438691,1780121443000,-519.24,0.00014999,2]
[423438638,1780121443000,-501.27,0.00014999,2]
[423438683,1780121443000,-151.0,0.00014999,2]
[423438668,1780121443000,-500.0,0.00014999,2]
[423438686,1780121443000,-519.24,0.00014999,2]
[423438670,1780121443000,-200.01390042,0.00014999,2]
[423438672,1780121443000,-151.0,0.00014999,2]
[423438644,1780121443000,-501.27,0.00014999,2]
[423438645,1780121443000,-501.27,0.00014999,2]
[423438646,1780121443000,-501.27,0.00014999,2]
[423438652,1780121443000,-500.0,0.00014999,2]
[423438653,1780121443000,-500.0,0.00014999,2]
[423438651,1780121443000,-500.0,0.00014999,2]
[423438649,1780121443000,-500.0,0.00014999,2]
[423438648,1780121443000,-501.29879675,0.00014999,2]
[423438647,1780121443000,-501.27,0.00014999,2]
[423438654,1780121443000,-500.0,0.00014999,2]
[423438655,1780121443000,-500.0,0.00014999,2]
[423438650,1780121443000,-500.0,0.00014999,2]
[423438666,1780121443000,-500.0,0.00014999,2]
[423438667,1780121443000,-500.0,0.00014999,2]
[423438656,1780121443000,-500.0,0.00014999,2]
[423438665,1780121443000,-500.0,0.00014999,2]
[423438664,1780121443000,-500.0,0.00014999,2]
[423438663,1780121443000,-500.0,0.00014999,2]
[423438662,1780121443000,-500.0,0.00014999,2]
[423438659,1780121443000,-500.0,0.00014999,2]
[423438657,1780121443000,-500.0,0.00014999,2]
[423438661,1780121443000,-500.0,0.00014999,2]
[423438660,1780121443000,-500.0,0.00014999,2]
[423438658,1780121443000,-500.0,0.00014999,2]
[423438716,1780121444000,-357.2090424,0.00014999,2]
[423438722,1780121444000,-500.0,0.00014999,2]
[423438717,1780121444000,-500.0,0.00014999,2]
[423438719,1780121444000,-500.0,0.00014999,2]
[423438715,1780121444000,-500.0,0.00014999,2]
[423438718,1780121444000,-500.0,0.00014999,2]
[423438735,1780121444000,-500.0,0.00014999,2]
[423438721,1780121444000,-500.0,0.00014999,2]
[423438720,1780121444000,-500.0,0.00014999,2]
[423438724,1780121444000,-500.0,0.00014999,2]
[423438725,1780121444000,-500.0,0.00014999,2]
[423438714,1780121444000,-500.0,0.00014999,2]
[423438723,1780121444000,-445.31384922,0.00014999,2]
[423438713,1780121444000,-500.0,0.00014999,2]
[423438701,1780121444000,-519.24,0.00014999,2]
[423438707,1780121444000,-500.0,0.00014999,2]
[423438711,1780121444000,-500.0,0.00014999,2]
[423438709,1780121444000,-500.0,0.00014999,2]
[423438706,1780121444000,-500.0,0.00014999,2]
[423438704,1780121444000,-519.24,0.00014999,2]
[423438705,1780121444000,-519.31898806,0.00014999,2]
[423438710,1780121444000,-500.0,0.00014999,2]
[423438708,1780121444000,-500.0,0.00014999,2]
[423438703,1780121444000,-519.24,0.00014999,2]
[423438702,1780121444000,-519.24,0.00014999,2]
[423438700,1780121444000,-519.24,0.00014999,2]
[423438697,1780121444000,-519.24,0.00014999,2]
[423438699,1780121444000,-519.24,0.00014999,2]
[423438736,1780121444000,-500.0,0.00014999,2]
[423438712,1780121444000,-500.0,0.00014999,2]
[423438734,1780121444000,-500.0,0.00014999,2]
[423438698,1780121444000,-519.24,0.00014999,2]
[423438731,1780121444000,-500.0,0.00014999,2]
[423438760,1780121444000,-561.22993896,0.00015,2]
[423438759,1780121444000,-616.95700799,0.00015,2]
[423438757,1780121444000,-66111.95878701,0.00015,2]
[423438758,1780121444000,-730.1,0.00015,2]
[423438755,1780121444000,-3892.53075856,0.00015,2]
[423438753,1780121444000,-448.0,0.00015,2]
[423438756,1780121444000,-3554.72065895,0.00015,2]
[423438754,1780121444000,-595.1744418,0.00015,2]
[423438752,1780121444000,-2093.68970089,0.00015,2]
[423438751,1780121444000,-418.98263072,0.00015,2]
[423438750,1780121444000,-2148.78433734,0.00015,2]
[423438747,1780121444000,-496.19290314,0.00015,2]
[423438749,1780121444000,-413.32766839,0.00015,2]
[423438748,1780121444000,-1158.67285135,0.00015,2]
[423438746,1780121444000,-618.6790189,0.00015,2]
[423438728,1780121444000,-500.0,0.00014999,2]
[423438744,1780121444000,-983.744131,0.00015,2]
[423438745,1780121444000,-94557.47355402,0.00015,2]
[423438727,1780121444000,-500.0,0.00014999,2]
[423438732,1780121444000,-500.0,0.00014999,2]
[423438729,1780121444000,-638.65220628,0.00014999,2]
[423438726,1780121444000,-500.0,0.00014999,2]
[423438733,1780121444000,-500.0,0.00014999,2]
[423438730,1780121444000,-400.0,0.00014999,2]
[423438739,1780121444000,-300.0,0.00014999,2]
[423438738,1780121444000,-378.92076892,0.00014999,2]
[423438740,1780121444000,-300.0,0.00014999,2]
[423438741,1780121444000,-1605434.90916379,0.00015,2]
[423438742,1780121444000,-2952.7500025,0.00015,2]
[423438743,1780121444000,-14078.95110786,0.00015,2]
[423438737,1780121444000,-500.0,0.00014999,2]
[423438764,1780121445000,-1332.93094512,0.00015,2]
[423438761,1780121445000,-375.18789012,0.00013599,2]
[423438762,1780121445000,-713.11239565,0.00013599,2]
[423438763,1780121445000,-1411.69971423,0.00013599,2]
[423438766,1780121445000,-3752.84555163,0.00015,2]
[423438765,1780121445000,-500.0,0.00014178,2]
[423438768,1780121445000,-707.48499536,0.00015,2]
[423438767,1780121445000,-503.0,0.00015,2]
[423438769,1780121445000,-553.420732,0.00012819,2]
[423438772,1780121445000,-500.0,0.00014999,2]
[423438771,1780121445000,-500.0,0.00014992,2]
[423438770,1780121445000,-163.0,0.0001488,2]
[423438776,1780121446000,-500.0,0.00014999,2]
[423438774,1780121446000,-500.0,0.00014999,2]
[423438773,1780121446000,-500.0,0.00014999,2]
[423438775,1780121446000,-500.0,0.00014999,2]
[423438777,1780121446000,-500.0,0.00014999,2]
[423438783,1780121446000,-458.38907396,0.00015,2]
[423438779,1780121446000,-600.87560884,0.00015,2]
[423438782,1780121446000,-4257.71251996,0.00015,2]
[423438781,1780121446000,-764.78,0.00015,2]
[423438778,1780121446000,-29788.43894,0.00015,2]
[423438780,1780121446000,-1951.01838596,0.00015,2]
[423438787,1780121562000,110.20461662,0.0001089,2]
[423438789,1780121671000,-152.0,0.00010929,7]
[423438790,1780121695000,-263.9977058,0.00010992,7]
[423438791,1780121726000,-822.17542124,0.0001089,2]
[423438792,1780121748000,-629.73995306,0.0001089,2]
[423438794,1780121791000,-150.0,0.00010998,2]
[423438795,1780121792000,-150.0,0.00011105,2]
[423438796,1780121834000,-150.0,0.00011105,2]
[423438797,1780121836000,-150.0,0.00011107,2]
[423438798,1780121878000,-250.0,0.00011106,2]
[423438799,1780121882000,-250.0,0.00011105,2]
[423438800,1780121883000,211.87895171,0.00028,120]
[423438801,1780121909000,-150.0,0.00010772,2]
[423438802,1780121961000,-300.0,0.00011103,2]
[423438805,1780122015000,-1200.0,0.00011103,2]
[423438810,1780122068000,-395.54511285,0.00011004,2]
[423438811,1780122121000,-500.0,0.00011103,2]
[423438896,1780122368000,-279.72240255,8.239e-05,2]
[423438897,1780122371000,-279.72240255,8.239e-05,2]
[423438898,1780122402000,-272.87874895,8.239e-05,2]
[423438950,1780122426000,-100.0,8.465e-05,2]
[423438949,1780122426000,-150.0,8.382e-05,2]
[423438951,1780122455000,-50.0,8.465e-05,2]
[423438952,1780122479000,-150.0,8.548e-05,2]
[423438953,1780122509000,-150.0,8.631e-05,2]
[423438954,1780122531000,-250.0,8.639e-05,2]
[423438955,1780122541000,1000.0,0.0002808,120]
[423438956,1780122562000,-287.0,8.714e-05,2]
[423438957,1780122584000,-260.0,9.036e-05,2]
[423438958,1780122615000,-500.0,9.036e-05,2]
[423438959,1780122631000,-500.0,9.035e-05,2]
[423438960,1780122631000,-200.05,9.035e-05,2]
[423438962,1780122631000,-500.0,9.035e-05,2]
[423438961,1780122631000,-299.95,9.035e-05,2]
[423439013,1780122632000,-1389.25,0.00011445,2]
[423439002,1780122632000,-500.0,0.00010699,2]
[423439003,1780122632000,-478.75039788,0.00010699,2]
[423439005,1780122632000,-486.58208179,0.00010699,2]
[423439004,1780122632000,-500.0,0.00010699,2]
[423439009,1780122632000,-540.60745725,0.00010934,2]
[423439008,1780122632000,-235.12527851,0.00010934,2]
[423439007,1780122632000,-173.82225014,0.00010934,2]
[423439006,1780122632000,-7994.13631563,0.000107,2]
[423439010,1780122632000,-263.6967419,0.00011168,2]
[423439011,1780122632000,-263.9977058,0.00011212,7]
[423439021,1780122632000,-1767.0732227,0.00011845,2]
[423439017,1780122632000,-8407.1,0.00011541,2]
[423439014,1780122632000,-150.0,0.0001148,2]
[423439016,1780122632000,-150.0,0.0001154,2]
[423439012,1780122632000,-150.0,0.00011365,2]
[423439027,1780122632000,-263.99770582,0.00012311,7]
[423439018,1780122632000,-263.9977058,0.00011542,7]
[423439001,1780122632000,-250.0,9.94e-05,2]
[423439019,1780122632000,-2000.0,0.00011633,2]
[423439022,1780122632000,-263.9977058,0.00011871,7]
[423439023,1780122632000,-1000.0,0.00011931,2]
[423439024,1780122632000,-3718.75,0.00011967,2]
[423439026,1780122632000,-675.05,0.00012155,2]
[423439028,1780122632000,-874.81,0.00012329,2]
[423439020,1780122632000,-202.92,0.00011658,2]
[423439000,1780122632000,-382.4626,9.94e-05,2]
[423438998,1780122632000,-153.88031198,9.391e-05,2]
[423438995,1780122632000,-500.0,9.036e-05,2]
[423438964,1780122632000,-500.0,9.035e-05,2]
[423438963,1780122632000,-500.0,9.035e-05,2]
[423438965,1780122632000,-500.0,9.035e-05,2]
[423438966,1780122632000,-500.0,9.035e-05,2]
[423438968,1780122632000,-500.0,9.035e-05,2]
[423438975,1780122632000,-500.0,9.035e-05,2]
[423438971,1780122632000,-500.0,9.035e-05,2]
[423438977,1780122632000,-500.0,9.035e-05,2]
[423438981,1780122632000,-500.0,9.035e-05,2]
[423438979,1780122632000,-500.0,9.035e-05,2]
[423438969,1780122632000,-500.0,9.035e-05,2]
[423438973,1780122632000,-500.0,9.035e-05,2]
[423438967,1780122632000,-500.0,9.035e-05,2]
[423438972,1780122632000,-500.0,9.035e-05,2]
[423438970,1780122632000,-500.0,9.035e-05,2]
[423438982,1780122632000,-500.0,9.035e-05,2]
[423438984,1780122632000,-500.0,9.035e-05,2]
[423438996,1780122632000,-250.0,9.037e-05,2]
[423438987,1780122632000,-500.0,9.035e-05,2]
[423438985,1780122632000,-500.0,9.035e-05,2]
[423438997,1780122632000,-3282.22541564,9.04e-05,2]
[423438994,1780122632000,-547.3711866,9.036e-05,2]
[423438993,1780122632000,-500.0,9.036e-05,2]
[423438989,1780122632000,-500.0,9.035e-05,2]
[423438991,1780122632000,-266.18335362,9.035e-05,2]
[423438999,1780122632000,-667.61866462,9.9e-05,2]
[423439030,1780122632000,-255.0,0.00012601,2]
[423439015,1780122632000,-3107.79,0.00011517,2]
[423439031,1780122632000,-200.0,0.00012726,2]
[423439059,1780122632000,-150.0,0.00013589,2]
[423439064,1780122632000,-150.0,0.00013613,2]
[423439062,1780122632000,-90081.79695887,0.00013599,2]
[423439065,1780122632000,-150.0,0.00013615,2]
[423439063,1780122632000,-24554.48,0.00013608,2]
[423439068,1780122632000,-150.0,0.00013675,2]
[423439066,1780122632000,-150.0,0.0001364,2]
[423439069,1780122632000,-150.0,0.00013675,2]
[423439074,1780122632000,-500.0,0.00013698,2]
[423439072,1780122632000,-637.02,0.00013698,2]
[423439071,1780122632000,-500.0,0.00013698,2]
[423439070,1780122632000,-150.0,0.00013691,2]
[423439075,1780122632000,-500.0,0.00013698,2]
[423439073,1780122632000,-500.0,0.00013698,2]
[423439077,1780122632000,-565.72873569,0.00013698,2]
[423439076,1780122632000,-500.0,0.00013698,2]
[423439078,1780122632000,-500.0,0.00013698,2]
[423439079,1780122632000,-416.75120868,0.00013698,2]
[423439080,1780122632000,-2500.0,0.00013699,2]
[423439082,1780122632000,-200.0,0.00013699,2]
[423439081,1780122632000,-166.66,0.00013699,2]
[423439084,1780122632000,-253.55,0.00013699,2]
[423439083,1780122632000,-304.26,0.00013699,2]
[423439085,1780122632000,-100.95021475,0.00013699,2]
[423439029,1780122632000,-160.84,0.00012451,2]
[423439061,1780122632000,-63549.88154113,0.00013599,2]
[423439060,1780122632000,-150.0,0.00013595,2]
[423439067,1780122632000,-150.0,0.00013665,2]
[423439058,1780122632000,-150.0,0.00013581,2]
[423439033,1780122632000,-202.92,0.00012824,2]
[423439025,1780122632000,-160.84,0.00012132,2]
[423439032,1780122632000,-160.84,0.0001277,2]
[423439034,1780122632000,-1389.25,0.00012876,2]
[423439035,1780122632000,-240.96,0.000129,2]
[423439038,1780122632000,-500.0,0.00013178,2]
[423439057,1780122632000,-150.0,0.00013564,2]
[423439039,1780122632000,-500.0,0.00013178,2]
[423439040,1780122632000,-17674.3148,0.00013399,2]
[423439044,1780122632000,-150.0,0.00013488,2]
[423439037,1780122632000,-160.84,0.0001309,2]
[423439043,1780122632000,-150.0,0.00013488,2]
[423439042,1780122632000,-160.84,0.00013409,2]
[423439036,1780122632000,-2000.0,0.00013087,2]
[423439045,1780122632000,-150.0,0.00013488,2]
[423439041,1780122632000,-263.6967419,0.00013399,2]
[423439055,1780122632000,-150.0,0.00013513,2]
[423439056,1780122632000,-150.0,0.00013538,2]
[423439053,1780122632000,-35503.6015,0.00013499,2]
[423439051,1780122632000,-150.0,0.00013488,2]
[423439054,1780122632000,-154.61916634,0.00013499,2]